fUSD/lending_fUSD_20250202
["ID","MTS","AMOUNT","RATE_DAILY","PERIOD"]
[351238029,1738467045690,-1440.0330555,0.00015989,2]
[351238030,1738467045699,-9657.82353191,0.00016,2]
[351238031,1738467045711,-5989.5,0.00016,2]
[351238032,1738467045728,-659.0579,0.00016,2]
[351238034,1738467045761,-685.34230725,0.00016,2]
[351238036,1738467045773,-335.94308569,0.00016,2]
[351238038,1738467045786,-347.11990337,0.00016,2]
[351238042,1738467045815,-1078.30357885,0.00016,2]
[351238044,1738467045827,-701.45170698,0.00016,2]
[351238105,1738467170540,153.57,0.00010137,2]
[351238107,1738467359468,1002.403161,0.00023,120]
[351238111,1738467850117,153.9,0.00016658,30]
[351238122,1738468131803,254.88,0.00010137,2]
[351238137,1738468231632,-576.24,0.00012713,2]
[351238138,1738468231642,-550.0,0.00013,2]
[351238139,1738468231652,-432.33984619,0.000135,2]
[351238140,1738468231662,-500.0,0.0001379,2]
[351238141,1738468231671,-179.21,0.00013845,2]
[351238142,1738468231682,-203.56039568,0.00013848,2]
[351238143,1738468231692,-300.0,0.00013947,2]
[351238144,1738468231702,-3597.24975817,0.00013948,2]
[351238145,1738468231715,-4148.55310356,0.00013948,2]
[351238146,1738468231752,-517.44278622,0.00013948,2]
[351238147,1738468231761,-800.0,0.00013948,2]
[351238148,1738468231771,-150.0,0.00013984,2]
[351238149,1738468231781,-1500.0,0.00014028,2]
[351238150,1738468231790,-304.7,0.00014044,2]
[351238151,1738468231803,-819.46,0.00014044,2]
[351238152,1738468231812,-200.0,0.00014052,2]
[351238153,1738468231822,-150.0,0.00014055,2]
[351238154,1738468231831,-726.11,0.00014094,2]
[351238155,1738468231841,-376.17,0.00014098,2]
[351238156,1738468231850,-350.69,0.00014151,2]
[351238157,1738468231860,-1690.55,0.00014208,2]
[351238158,1738468231870,-1763.14,0.00014246,2]
[351238159,1738468231879,-655.85710796,0.00014256,2]
[351238160,1738468231918,-394.73482766,0.00014256,2]
[351238161,1738468231947,-10183.0,0.00014256,2]
[351238162,1738468231959,-426.5274678,0.00014256,2]
[351238163,1738468235938,-250.0,0.00013845,2]
[351238164,1738468235948,-12239.88059658,0.00014256,2]
[351238165,1738468235959,-200.0,0.00014258,2]
[351238166,1738468235969,-3293.25,0.00014287,2]
[351238167,1738468235979,-150.0,0.00014289,2]
[351238168,1738468235989,-2947.25,0.00014289,2]
[351238169,1738468235999,-163.34,0.00014308,2]
[351238170,1738468236009,-1000.0,0.00014332,2]
[351238171,1738468236020,-500.0,0.00014356,2]
[351238172,1738468236030,-152.0,0.00014383,3]
[351238173,1738468236041,-306.28,0.0001439,2]
[351238174,1738468236051,-150.0,0.0001439,2]
[351238175,1738468236061,-284.91,0.00014393,2]
[351238178,1738468236071,-150.0,0.00014423,2]
[351238179,1738468236082,-444.26,0.00014423,2]
[351238180,1738468236091,-151.2,0.00014423,2]
[351238181,1738468236101,-600.07,0.00014423,2]
[351238182,1738468236111,-151.96,0.00014423,2]
[351238184,1738468236121,-151.86,0.00014423,2]
[351238185,1738468236131,-150.0,0.00014424,2]
[351238187,1738468236141,-203.56039568,0.00014433,2]
[351238188,1738468236151,-500.0,0.00014498,2]
[351238189,1738468236161,-175.64,0.00014533,2]
[351238190,1738468236170,-3286.70020356,0.000149,2]
[351238191,1738468236180,-3286.7002034,0.00014969,2]
[351238192,1738468236190,-576.24,0.00014977,2]
[351238193,1738468236200,-600.0,0.00015,2]
[351238194,1738468236210,-3286.7002034,0.00015038,2]
[351238195,1738468236219,-500.0,0.00015044,2]
[351238196,1738468236229,-3286.7002034,0.00015107,2]
[351238198,1738468236240,-11880.22098855,0.00015111,2]
[351238199,1738468236252,-14060.77901145,0.00015111,2]
[351238200,1738468236262,-3286.7002034,0.00015176,2]
[351238201,1738468236271,-226.44,0.00015177,2]
[351238202,1738468236281,-201.80348362,0.00015245,2]
[351238203,1738468236293,-3084.89671978,0.00015245,2]
[351238204,1738468236307,-438.4,0.00015245,2]
[351238205,1738468236316,-150.0,0.00015245,2]
[351238206,1738468236327,-150.0,0.00015245,2]
[351238207,1738468236338,-150.0,0.00015245,2]
[351238208,1738468236348,-437.5,0.00015245,2]
[351238209,1738468236358,-150.0,0.00015245,2]
[351238210,1738468236368,-150.0,0.00015245,2]
[351238211,1738468236378,-150.0,0.00015245,2]
[351238212,1738468236389,-150.0,0.00015245,2]
[351238213,1738468236400,-150.0,0.00015245,2]
[351238214,1738468236410,-270.55,0.00015278,2]
[351238215,1738468236419,-420.0,0.0001528,2]
[351238216,1738468236429,-152.0,0.00015306,4]
[351238217,1738468236439,-3286.7002034,0.00015314,2]
[351238218,1738468236448,-800.0,0.00015318,2]
[351238219,1738468236458,-150.0,0.00015343,2]
[351238220,1738468236468,-3286.7002034,0.00015383,2]
[351238221,1738468236478,-729.11026486,0.00015399,2]
[351238222,1738468236488,-1000.0,0.000154,5]
[351238223,1738468236498,-1141.7298,0.00015425,2]
[351238224,1738468236507,-453.4401,0.00015425,2]
[351238225,1738468236517,-1167.1205,0.00015425,2]
[351238226,1738468236527,-3286.7002034,0.00015452,2]
[351238227,1738468236536,-2000.0,0.000155,5]
[351238228,1738468236546,-255.0,0.00015512,2]
[351238229,1738468236559,-3049.48440837,0.00015521,2]
[351238230,1738468236587,-237.21579503,0.00015521,2]
[351238231,1738468236597,-878.1,0.00015534,2]
[351238232,1738468236606,-774.54,0.00015534,2]
[351238233,1738468236615,-774.54,0.00015534,2]
[351238234,1738468236625,-774.54,0.00015534,2]
[351238235,1738468236634,-774.54,0.00015534,2]
[351238236,1738468236644,-774.54,0.00015534,2]
[351238237,1738468236654,-774.54,0.00015534,2]
[351238238,1738468236663,-774.54,0.00015534,2]
[351238239,1738468236672,-774.54,0.00015534,2]
[351238240,1738468236683,-207.62,0.00015534,2]
[351238241,1738468236692,-3971.63075597,0.00015558,2]
[351238242,1738468236704,-3416.20272529,0.00015558,2]
[351238243,1738468236713,-3286.7002034,0.0001559,2]
[351238244,1738468236723,-2665.39995661,0.000156,5]
[351238245,1738468236739,-334.60004339,0.000156,5]
[351238246,1738468236749,-163.055319,0.00015613,2]
[351238250,1738468238201,-4519.19486859,0.00015613,2]
[351238251,1738468238212,-442.20931429,0.00015613,2]
[351238252,1738468238224,-49749.99999995,0.00015613,2]
[351238253,1738468238247,-641.17075531,0.00015613,2]
[351238254,1738468238258,-11341.45376007,0.00015613,2]
[351238255,1738468238302,-4373.16508401,0.00015613,2]
[351238256,1738468238315,-59980.43389644,0.00015613,2]
[351238257,1738468238337,-3695.18036354,0.00015613,2]
[351238258,1738468238349,-1008.45117065,0.00015613,2]
[351238259,1738468238377,-5417.25051561,0.00015613,2]
[351238260,1738468238386,-7387.83348124,0.00015645,2]
[351238261,1738468238396,-500.0,0.00015658,2]
[351238262,1738468238406,-500.0,0.00015658,2]
[351238263,1738468238415,-500.0,0.00015658,2]
[351238264,1738468238424,-500.0,0.00015658,2]
[351238265,1738468238434,-338.34,0.00015658,2]
[351238266,1738468238444,-3286.7002034,0.00015659,2]
[351238267,1738468238453,-190.86,0.00015671,2]
[351238268,1738468238462,-150.0,0.00015671,2]
[351238269,1738468238472,-547.28,0.00015671,2]
[351238270,1738468238482,-438.21,0.00015671,2]
[351238271,1738468238491,-984.28,0.00015671,2]
[351238272,1738468238500,-150.0,0.00015671,2]
[351238273,1738468238510,-984.28,0.00015671,2]
[351238274,1738468238520,-982.43,0.00015671,2]
[351238275,1738468238529,-150.0,0.00015671,2]
[351238276,1738468238538,-177.67229891,0.0001569,2]
[351238277,1738468238548,-261.4157412,0.00015699,2]
[351238278,1738468238561,-2546.0,0.000157,2]
[351238279,1738468238570,-4000.0,0.000157,5]
[351238280,1738468238580,-539.6255,0.00015711,2]
[351238281,1738468238589,-543.1371,0.00015711,2]
[351238282,1738468238599,-1253.6743,0.00015711,2]
[351238283,1738468238609,-3286.7002034,0.00015728,2]
[351238284,1738468238619,-417.80355407,0.00015728,2]
[351238285,1738468238628,-7387.83348124,0.00015731,2]
[351238286,1738468238638,-175.64,0.00015733,2]
[351238287,1738468238648,-607.0161,0.00015744,2]
[351238288,1738468238658,-304.7621,0.00015744,2]
[351238289,1738468238667,-1834.3559,0.00015744,2]
[351238290,1738468238676,-1000.0,0.0001575,2]
[351238291,1738468238686,-2500.0,0.0001575,2]
[351238292,1738468238695,-261.4157412,0.00015753,2]
[351238293,1738468238703,-12886.946,0.0001579,2]
[351238294,1738468238714,-355.5267,0.0001579,2]
[351238295,1738468238723,-3027.0042,0.0001579,2]
[351238296,1738468238732,-3286.7002034,0.00015797,2]
[351238297,1738468238742,-819.46,0.00015799,2]
[351238298,1738468238751,-34540.2949,0.000158,2]
[351238299,1738468238760,-5000.0,0.000158,5]
[351238300,1738468238769,-18985.1806,0.00015811,2]
[351238301,1738468238782,-1000.0,0.00015811,2]
[351238302,1738468238792,-7387.83348124,0.00015818,2]
[351238303,1738468238803,-261.4157412,0.00015836,2]
[351238304,1738468238813,-4000.0,0.0001584,2]
[351238305,1738468238823,-1555.04731067,0.00015859,2]
[351238306,1738468238832,-3286.7002034,0.00015866,2]
[351238307,1738468238842,-500.0,0.00015872,2]
[351238308,1738468238852,-500.0,0.00015873,2]
[351238309,1738468238862,-1502.01,0.0001589,7]
[351238310,1738468238872,-100791.4895,0.0001589,2]
[351238311,1738468238882,-1367.519,0.0001589,2]
[351238312,1738468238891,-20719.45092703,0.00015896,2]
[351238313,1738468238900,-47576.77043989,0.000159,2]
[351238314,1738468238913,-13626.96321955,0.000159,2]
[351238315,1738468238922,-152.79014992,0.000159,2]
[351238316,1738468238931,-268.16839575,0.000159,2]
[351238317,1738468238941,-226.9902,0.000159,2]
[351238318,1738468238950,-195.56033,0.000159,2]
[351238319,1738468238959,-1000.0,0.000159,5]
[351238320,1738468238968,-7387.83348124,0.00015905,2]
[351238321,1738468238978,-261.4157412,0.00015918,2]
[351238322,1738468238987,-20719.45092703,0.00015934,2]
[351238323,1738468238997,-3286.7002034,0.00015934,2]
[351238324,1738468239008,-20719.45092703,0.00015941,2]
[351238325,1738468239017,-288.04869811,0.00015957,2]
[351238326,1738468239028,-288.04869811,0.00015967,2]
[351238327,1738468239038,-288.04869811,0.00015968,2]
[351238328,1738468239048,-20719.45092703,0.00015984,2]
[351238329,1738468239060,-1098.2992465,0.00015989,2]
[351238330,1738468239070,-834.770853,0.00015989,2]
[351238331,1738468239079,-476.0294972,0.00015989,2]
[351238332,1738468239089,-3361.9115067,0.00015989,2]
[351238333,1738468239099,-657.31954705,0.00015989,2]
[351238334,1738468239109,-674.7483616,0.00015989,2]
[351238335,1738468239118,-866.7744001,0.00015989,2]
[351238336,1738468239128,-62221.93338139,0.0001599,2]
[351238337,1738468239141,-2681.65187493,0.0001599,2]
[351238338,1738468239153,-11615.01556835,0.0001599,2]
[351238343,1738468239999,-21000.0,0.0001599,2]
[351238344,1738468240121,-745.26555077,0.0001599,2]
[351238348,1738468240359,-1229.39885591,0.0001599,2]
[351238442,1738468242736,-4952.21468641,0.0001599,2]
[351238443,1738468242823,-110042.05808433,0.0001599,2]
[351238444,1738468242833,-174.30428846,0.0001599,2]
[351238445,1738468242843,-7387.83348124,0.00015991,2]
[351238446,1738468242859,-288.04869811,0.00015995,2]
[351238447,1738468242879,-1471.84744085,0.00015999,5]
[351238448,1738468242888,-1467.0,0.00016,2]
[351238449,1738468242900,-401215.3768331,0.00016,2]
[351238450,1738468242912,-14667.9833498,0.00016,2]
[351238451,1738468242921,-54792.0,0.00016,2]
[351238452,1738468242929,-2009.28,0.00016,2]
[351238453,1738468242938,-151.0,0.00016,2]
[351238455,1738468242948,-163.994012,0.00016,2]
[351238457,1738468242957,-163.994012,0.00016,2]
[351238459,1738468242966,-11106.26226791,0.00016,2]
[351238461,1738468242976,-770.44300077,0.00016,2]
[351238505,1738468246058,-10188.1107464,0.00016,2]
[351238508,1738468246123,-615.24,0.00016,2]
[351238510,1738468246141,-1543.49445055,0.00016,2]
[351238554,1738468412308,314.16959024,0.00023,120]
[351238583,1738468693572,153.9,0.00016658,30]
[351238584,1738468776589,-588.65,0.00013232,2]
[351238585,1738468776612,-150.0,0.0001359,2]
[351238586,1738468776634,-800.0,0.00013948,2]
[351238587,1738468776656,-150.0,0.00014555,2]
[351238588,1738468776681,-150.0,0.00014686,2]
[351238589,1738468776703,-1084.93,0.00014874,2]
[351238590,1738468776724,-300.0,0.00014908,2]
[351238591,1738468801213,276.42,0.00014908,2]
[351238995,1738469235131,5260.77490566,0.00023,120]
[351239391,1738469356575,-559.21,0.00012979,2]
[351239401,1738469431811,-1059.0,0.00014096,2]
[351239403,1738469431821,-300.0,0.00014796,2]
[351239405,1738469431831,-163.34,0.00014797,2]
[351239407,1738469431843,-2603.595,0.00014797,2]
[351239409,1738469431854,-467.34554335,0.00014797,2]
[351239413,1738469431887,164.47,0.00010137,2]
[351239417,1738469432153,-993.58259,0.00014797,2]
[351239418,1738469432175,-402.92919909,0.00014797,2]
[351239419,1738469432210,-744.5572046,0.00014797,2]
[351239420,1738469432221,-5201.88995044,0.00014797,2]
[351239421,1738469432232,-580.87891067,0.00014797,2]
[351239422,1738469432244,-3291.15160185,0.00014797,2]
[351239423,1738469432253,-345.29,0.00014895,2]
[351239424,1738469432263,-277.36,0.00014918,2]
[351239425,1738469432272,-13485.42,0.00014946,2]
[351239426,1738469432282,-449.49,0.00014959,2]
[351239427,1738469432291,-1000.0,0.00014962,2]
[351239428,1738469432301,-6336.81004909,0.00015,2]
[351239430,1738469432312,-289.125,0.00015,2]
[351239532,1738469437666,-394.67500275,0.00015,2]
[351239533,1738469437725,-316.11963543,0.00015,2]
[351239534,1738469437736,-316.19124339,0.00015,2]
[351239535,1738469437748,-493.32906934,0.00015,2]
[351239536,1738469437759,-1244.36,0.00015,2]
[351239537,1738469437774,-500.0,0.00015044,2]
[351239538,1738469437786,-700.0,0.00015044,2]
[351239539,1738469437796,-559.21,0.00015243,2]
[351239540,1738469437806,-206.17411226,0.00015512,2]
[351239541,1738469437819,-93.82588774,0.00015512,2]
[351239542,1738469437829,-3193.91087622,0.00015513,2]
[351239543,1738469437840,-11426.80797,0.00015513,2]
[351239544,1738469437954,-17059.65255378,0.00015513,2]
[351239545,1738469437964,-1000.0,0.000156,2]
[351239546,1738469437973,-156.43705959,0.00015699,2]
[351239547,1738469437983,-2456.0,0.000157,2]
[351239548,1738469437992,-1150.0,0.000157,2]
[351239549,1738469438001,-437.26,0.000157,2]
[351239550,1738469438010,-2500.0,0.000158,2]
[351239551,1738469438020,-5134.19451206,0.000158,2]
[351239552,1738469438028,-1000.0,0.000158,2]
[351239553,1738469438037,-1595.8265,0.000158,2]
[351239554,1738469438047,-177.67229891,0.000158,2]
[351239555,1738469438057,-1000.0,0.000158,2]
[351239556,1738469438066,-4106.26976916,0.000158,2]
[351239557,1738469438075,-4000.0,0.0001584,2]
[351239558,1738469438085,-873.95086604,0.00015854,2]
[351239559,1738469438096,-5134.19451197,0.0001586,2]
[351239560,1738469438105,-4106.26976908,0.0001586,2]
[351239561,1738469438116,-500.0,0.00015872,2]
[351239562,1738469438125,-1482.43,0.0001589,7]
[351239563,1738469438135,-156.43705959,0.0001589,2]
[351239564,1738469438144,-496.35312192,0.00015893,2]
[351239565,1738469438153,-234.11726726,0.00015899,2]
[351239566,1738469438162,-310.2291,0.000159,2]
[351239567,1738469438171,-54449.56889415,0.000159,2]
[351239634,1738469439868,-6014.3341505,0.000159,2]
[351239652,1738469440034,-42933.20029862,0.000159,2]
[351239654,1738469440046,-785.98906242,0.000159,2]
[351239665,1738469440142,-1911.78220433,0.000159,2]
[351239669,1738469440172,-866.0935917,0.000159,2]
[351239671,1738469440184,-3080.65464522,0.000159,2]
[351239674,1738469440206,-745.8085017,0.000159,2]
[351239676,1738469440217,-896.94360525,0.000159,2]
[351239720,1738469442991,-1989.6766923,0.000159,2]
[351239721,1738469443042,-99401.88421862,0.000159,2]
[351239722,1738469443054,-420.397,0.000159,2]
[351239723,1738469443066,-426766.57879343,0.000159,2]
[351239724,1738469443075,-4168.69655256,0.000159,2]
[351239725,1738469443086,-252.4781214,0.000159,2]
[351239726,1738469443099,-216.99437135,0.000159,2]
[351239727,1738469443108,-1533.79342835,0.000159,2]
[351239728,1738469443118,-174.4514988,0.000159,2]
[351239729,1738469443127,-1233.1629,0.000159,2]
[351239730,1738469443137,-1010.0,0.000159,2]
[351239731,1738469443146,-5134.19451197,0.0001592,2]
[351239732,1738469443156,-4106.26976908,0.0001592,2]
[351239733,1738469443165,-496.35312192,0.00015925,2]
[351239734,1738469443175,-200.0,0.00015931,2]
[351239735,1738469443184,-496.35312192,0.00015972,2]
[351239736,1738469443193,-640.02,0.00015979,2]
[351239737,1738469443202,-150.0,0.00015979,2]
[351239738,1738469443211,-1006.0,0.00015979,2]
[351239740,1738469443220,-150.869,0.00015979,2]
[351239742,1738469443230,-3910.0,0.00015979,2]
[351239743,1738469443239,-1108.0,0.00015979,2]
[351239744,1738469443248,-5134.19451197,0.00015979,2]
[351239745,1738469443257,-913.2912929,0.00015989,2]
[351239746,1738469443267,-616.1652095,0.00015989,2]
[351239748,1738469443276,-449.8322414,0.00015989,2]
[351239750,1738469443286,-3292.9825977,0.00015989,2]
[351239752,1738469443296,-445.4470956,0.00015989,2]
[351239754,1738469443305,-1800.057844,0.00015989,2]
[351239755,1738469443315,-744.95117234,0.00015989,2]
[351239756,1738469443325,-174.30428846,0.0001599,2]
[351239757,1738469443335,-2109.42079087,0.0001599,2]
[351239758,1738469443345,-113395.32824046,0.0001599,2]
[351239759,1738469443358,-3083.91880796,0.0001599,2]
[351239760,1738469443368,-496.35312192,0.00015997,2]
[351239761,1738469443377,-1000.0,0.00015999,2]
[351239762,1738469443386,-1000.0,0.00015999,2]
[351239763,1738469443396,-1000.0,0.00015999,2]
[351239764,1738469443406,-1000.0,0.00015999,2]
[351239765,1738469443415,-1000.0,0.00015999,2]
[351239766,1738469443425,-1000.0,0.00015999,2]
[351239767,1738469443434,-1000.0,0.00015999,2]
[351239768,1738469443444,-1000.0,0.00015999,2]
[351239769,1738469443453,-1000.0,0.00015999,2]
[351239770,1738469443463,-1000.0,0.00015999,2]
[351239771,1738469443472,-1000.0,0.00015999,2]
[351239772,1738469443482,-1000.0,0.00015999,2]
[351239773,1738469443491,-1000.0,0.00015999,2]
[351239774,1738469443501,-1000.0,0.00015999,2]
[351239775,1738469443511,-1000.0,0.00015999,2]
[351239776,1738469443521,-1000.0,0.00015999,2]
[351239777,1738469443530,-1000.0,0.00015999,2]
[351239778,1738469443540,-1000.0,0.00015999,2]
[351239779,1738469443550,-1000.0,0.00015999,2]
[351239780,1738469443559,-690.52006194,0.00015999,2]
[351239781,1738469443571,-309.47993806,0.00015999,2]
[351239782,1738469443581,-1000.0,0.00015999,2]
[351239783,1738469443590,-216.0,0.00015999,2]
[351239784,1738469443603,-300.0,0.00015999,2]
[351239785,1738469443612,-300.0,0.00015999,2]
[351239786,1738469443621,-300.0,0.00015999,2]
[351239787,1738469443630,-300.0,0.00015999,2]
[351239788,1738469443640,-300.0,0.00015999,2]
[351239789,1738469443649,-478.32211711,0.00015999,2]
[351239790,1738469443658,-1688.0,0.00016,2]
[351239791,1738469443668,-44530.19794483,0.00016,2]
[351239792,1738469443680,-5980.94260002,0.00016,2]
[351239801,1738469445847,-276.837148,0.00015979,2]
[351239802,1738469445860,-279.1859436,0.00015979,2]
[351239803,1738469445959,-3550.24667748,0.00015979,2]
[351239804,1738469445969,-61058.83528389,0.00016,2]
[351239805,1738469445980,-302.0,0.00016,2]
[351239806,1738469446074,-1031.61390443,0.00016,2]
[351239811,1738469521550,153.66,0.00016658,30]
[351239813,1738469946561,693.702441,0.00023,120]
[351239815,1738470269538,153.57,0.00010137,2]
[351239816,1738470308505,508281.45411446,0.00012,2]
[351239817,1738470320395,2422.83255452,9e-05,2]
[351239913,1738470337149,15992.88134444,8e-05,2]
[351239915,1738470354820,10617.12088314,0.00011688,2]
[351239916,1738470356008,24914.69311775,6.94e-05,2]
[351239917,1738470367847,9021.50431063,8e-05,2]
[351239921,1738470406122,-531.39,0.00012988,2]
[351239922,1738470406145,-113.68077995,0.00014537,3]
[351239923,1738470430672,611.62559218,0.00011999,2]
[351240196,1738470480238,19527.96094064,0.0001,2]
[351240197,1738470483921,929165.587048,0.0001,2]
[351240198,1738470556702,153.66,0.00016658,30]
[351240199,1738470560777,225.92,0.00023,120]
[351240200,1738470571789,225.91,0.00023,120]
[351240246,1738470637968,-38.31922005,0.00014537,3]
[351240247,1738470637978,-824.68,0.00014704,2]
[351240248,1738470637988,-250.0,0.00014739,2]
[351240249,1738470637998,-542.46,0.00014778,2]
[351240250,1738470638007,-500.0,0.00014794,2]
[351240251,1738470638017,-700.0,0.00014794,2]
[351240252,1738470638027,-492.7614,0.00014889,2]
[351240253,1738470638037,-200.0,0.00014892,2]
[351240254,1738470638047,-631.81,0.00014913,2]
[351240255,1738470638056,-1659.84,0.00014932,2]
[351240256,1738470638066,-500.0,0.00014933,2]
[351240257,1738470638075,-575.47,0.00014939,2]
[351240258,1738470638085,-373.85,0.00015044,2]
[351240259,1738470638094,-1000.0,0.00015131,2]
[351240260,1738470638104,-531.39,0.00015252,2]
[351240261,1738470638115,-200.0,0.000155,5]
[351240262,1738470638124,-150.0,0.000156,2]
[351240263,1738470638134,-150.0,0.000156,2]
[351240264,1738470638144,-500.0,0.000156,5]
[351240265,1738470638155,-152.0,0.00015613,4]
[351240266,1738470638165,-205.0,0.0001564,2]
[351240267,1738470638178,-800.0,0.000157,5]
[351240268,1738470638187,-205.0,0.0001574,2]
[351240269,1738470638199,-309.84559547,0.0001576,2]
[351240270,1738470638209,-372.56,0.000158,2]
[351240271,1738470638218,-376.73,0.000158,2]
[351240272,1738470638228,-1100.0,0.000158,5]
[351240273,1738470638237,-4000.0,0.0001584,2]
[351240274,1738470638246,-300.0,0.0001584,2]
[351240275,1738470638255,-205.0,0.0001585,2]
[351240276,1738470638265,-500.0,0.00015872,2]
[351240277,1738470638274,-1462.33,0.0001589,7]
[351240278,1738470638284,-1400.0,0.000159,5]
[351240279,1738470638294,-3080.5167072,0.000159,2]
[351240280,1738470638303,-1482.66698069,0.000159,2]
[351240281,1738470638312,-2523.00286152,0.000159,2]
[351240282,1738470638321,-2500.0,0.000159,2]
[351240283,1738470638331,-729.80156901,0.000159,2]
[351240284,1738470638341,-200.0,0.0001594,2]
[351240285,1738470638351,-2588.67685209,0.00015945,2]
[351240286,1738470638360,-205.0,0.0001595,2]
[351240287,1738470638369,-3080.51670718,0.00015956,2]
[351240288,1738470638379,-2523.00286144,0.00015956,2]
[351240289,1738470638389,-200.0,0.00015957,2]
[351240290,1738470638398,-2588.67685209,0.0001596,2]
[351240291,1738470638407,-2588.67685209,0.00015988,2]
[351240292,1738470638417,-2022.5770538,0.00015989,2]
[351240293,1738470638428,-3787.5622274,0.00015989,2]
[351240294,1738470638437,-278.0580073,0.00015989,2]
[351240295,1738470638447,-367.3703679,0.00015989,2]
[351240297,1738470638456,-269.31902936,0.0001599,2]
[351240299,1738470638465,-2588.67685209,0.00015996,2]
[351240301,1738470638474,-34596.36375299,0.00015999,2]
[351240310,1738470638537,-850.64963325,0.00015999,2]
[351240312,1738470638546,-187.81518091,0.00016,2]
[351240395,1738470640061,-181.41481909,0.00016,2]
[351240397,1738470640070,-379.93,0.00016,2]
[351240398,1738470640080,-14758.39568908,0.00016,2]
[351240400,1738470640091,-2478.82499999,0.00016,2]
[351240402,1738470640102,-2830.02928545,0.00016,2]
[351240421,1738470640338,-407.9637766,0.00016,2]
[351240679,1738470643090,-541.54300055,0.00016,2]
[351240686,1738470643141,-71.67453108,0.00016,2]
[351240689,1738470643168,-443.4506406,0.00016,2]
[351240692,1738470643181,-447.81093681,0.00016,2]
[351241005,1738470646350,-497674.16809188,0.00016,2]
[351241007,1738470646359,-67455.25958056,0.00016,2]
[351241009,1738470646368,-261.4157412,0.00016,2]
[351241011,1738470646377,-163.994012,0.00016,2]
[351241013,1738470646387,-163.994012,0.00016,2]
[351241015,1738470646396,-50000.0,0.00016,2]
[351241017,1738470646405,-500.0,0.00016,2]
[351241019,1738470646413,-500.0,0.00016,2]
[351241021,1738470646422,-500.0,0.00016,2]
[351241023,1738470646433,-500.0,0.00016,2]
[351241025,1738470646442,-500.0,0.00016,2]
[351241027,1738470646450,-500.0,0.00016,2]
[351241029,1738470646459,-500.0,0.00016,2]
[351241031,1738470646468,-500.0,0.00016,2]
[351241033,1738470646478,-500.0,0.00016,2]
[351241035,1738470646486,-500.0,0.00016,2]
[351241061,1738470646728,-500.0,0.00016,2]
[351241063,1738470646738,-500.0,0.00016,2]
[351241065,1738470646747,-500.0,0.00016,2]
[351241067,1738470646756,-500.0,0.00016,2]
[351241069,1738470646766,-500.0,0.00016,2]
[351241071,1738470646775,-500.0,0.00016,2]
[351241073,1738470646784,-500.0,0.00016,2]
[351241075,1738470646793,-500.0,0.00016,2]
[351241077,1738470646803,-500.0,0.00016,2]
[351241079,1738470646812,-831.0,0.00016,2]
[351241081,1738470646820,-216.4098183,0.00016,2]
[351241083,1738470646830,-514.0,0.00016,2]
[351241085,1738470646839,-1000.0,0.00016,2]
[351241087,1738470646848,-1000.0,0.00016,2]
[351241089,1738470646857,-1000.0,0.00016,2]
[351241091,1738470646867,-1000.0,0.00016,2]
[351241093,1738470646876,-1000.0,0.00016,2]
[351241095,1738470646886,-1000.0,0.00016,2]
[351241097,1738470646895,-1000.0,0.00016,2]
[351241099,1738470646904,-1000.0,0.00016,2]
[351241101,1738470646913,-1000.0,0.00016,2]
[351241103,1738470646922,-1000.0,0.00016,2]
[351241105,1738470646934,-1000.0,0.00016,2]
[351241107,1738470646943,-1016.0,0.00016,2]
[351241109,1738470646952,-1000.0,0.00016,2]